bitfinex-derivatives/quotes_BTCF0:USTF0_20241223
["timestamp","ask_amount","ask_price","bid_price","bid_amount"]
[1734928499749,0.004,96088.0,96086.0,0.052091]
[1734928500157,0.005,96088.0,96086.0,0.052091]
[1734928500845,0.005,96088.0,96082.0,0.052093]
[1734928500846,0.002,96088.0,96082.0,0.052093]
[1734928501244,0.10391235,96091.0,96082.0,0.052093]
[1734928501447,0.004,96088.0,96082.0,0.052093]
[1734928502049,0.004,96088.0,96083.0,0.052092]
[1734928502244,0.004,96088.0,96080.0,0.24709959]
[1734928502653,0.004,96088.0,96081.0,0.24709959]
[1734928503051,0.004,96088.0,96086.0,0.052091]
[1734928503856,0.09342962,96092.0,96087.0,0.21812661]
[1734928504151,0.12469855,96096.0,96091.0,0.412888]
[1734928504352,0.12469855,96096.0,96095.0,0.052086]
[1734928504856,0.12469855,96096.0,96095.0,0.09249372]
[1734928505157,0.12469855,96096.0,96095.0,0.052086]
[1734928505561,0.00967756,96109.0,96091.0,0.3608]
[1734928505751,0.00967756,96109.0,96100.0,0.052083]
[1734928506557,0.052079,96108.0,96100.0,0.052083]
[1734928507151,0.00910365,96101.0,96100.0,0.053083]
[1734928508159,0.00910365,96101.0,96100.0,0.413883]
[1734928508854,0.12469855,96117.0,96100.0,0.61091542]
[1734928509066,0.12469855,96119.0,96118.0,0.052074]
[1734928509753,0.12482644,96119.0,96118.0,0.052074]
[1734928510255,0.12682644,96119.0,96118.0,0.052074]
[1734928510667,0.00212789,96119.0,96118.0,0.052074]
[1734928511055,0.052075,96117.0,96115.0,0.24711387]
[1734928511861,0.052075,96117.0,96116.0,0.24711387]
[1734928513062,0.052075,96117.0,96110.0,0.052078]
[1734928513761,0.053075,96117.0,96110.0,0.052078]
[1734928514162,0.052075,96117.0,96110.0,0.052078]
[1734928514362,0.052075,96117.0,96110.0,0.054078]
[1734928515259,0.052077,96112.0,96110.0,0.002]
[1734928516261,0.05220089,96119.0,96110.0,0.002]
[1734928517163,0.05220089,96119.0,96110.0,0.001]
[1734928517357,0.052074,96117.0,96110.0,0.001]
[1734928517662,0.052074,96117.0,96110.0,0.053078]
[1734928521765,0.052074,96117.0,96111.0,0.052077]
[1734928522965,0.052074,96117.0,96111.0,0.053077]
[1734928523170,0.00012789,96119.0,96111.0,0.001]
[1734928523461,0.052076,96113.0,96111.0,0.001]
[1734928524064,0.36140001,96118.0,96111.0,0.053077]
[1734928524258,0.3608,96118.0,96111.0,0.053077]
[1734928524569,0.3608,96118.0,96108.0,0.3608]
[1734928524755,0.3608,96118.0,96108.0,0.46471235]
[1734928524963,0.3608,96118.0,96117.0,0.052074]
[1734928525157,0.00012789,96119.0,96117.0,0.052074]
[1734928526967,0.00112789,96119.0,96117.0,0.052074]
[1734928527571,0.00112789,96119.0,96118.0,0.3608]
[1734928531578,0.00112789,96119.0,96118.0,0.6699773]
[1734928533077,0.00112789,96119.0,96118.0,0.53239195]
[1734928536075,0.00112789,96119.0,96118.0,0.57277006]
[1734928536282,0.00112789,96119.0,96118.0,0.53239195]
[1734928536675,0.00156087,96129.0,96118.0,0.57277368]
[1734928536980,0.00156087,96129.0,96128.0,0.052068]
[1734928537774,0.00164617,96129.0,96128.0,0.052068]
[1734928538080,0.00264617,96129.0,96128.0,0.052068]
[1734928539379,0.00664617,96129.0,96128.0,0.29946605]
[1734928540081,0.00664617,96129.0,96128.0,0.24739805]
[1734928540284,0.00664617,96129.0,96127.0,0.3608]
[1734928540467,0.05207,96124.0,96120.0,0.31020757]
[1734928540670,0.052071,96123.0,96120.0,0.30924757]
[1734928541081,0.0637,96128.0,96120.0,0.30924757]
[1734928541985,0.3608,96127.0,96119.0,0.24795913]
[1734928542573,0.052069,96127.0,96119.0,0.24795913]
[1734928542775,0.05207,96126.0,96119.0,0.24795913]
[1734928543280,0.001,96127.0,96122.0,0.18599896]
[1734928543874,0.3618,96127.0,96122.0,0.18599896]
[1734928544084,0.052071,96123.0,96122.0,0.18599896]
[1734928544783,0.052071,96123.0,96121.0,0.24795913]
[1734928546290,0.052071,96123.0,96108.0,0.00156059]
[1734928546291,0.052072,96121.0,96112.0,0.18605108]
[1734928546582,0.3608,96119.0,96112.0,0.18605108]
[1734928546982,0.412873,96119.0,96112.0,0.18605108]
[1734928547184,0.3608,96119.0,96112.0,0.18605108]
[1734928547383,0.052074,96117.0,96112.0,0.18605108]
[1734928547583,0.052074,96117.0,96111.0,0.18605108]
[1734928548677,0.052074,96117.0,96114.0,0.18605108]
[1734928549788,0.052074,96117.0,96114.0,0.18705108]
[1734928550289,0.052074,96117.0,96114.0,0.001]
[1734928551692,0.052075,96115.0,96114.0,0.001]
[1734928552879,0.052077,96112.0,96111.0,0.24795913]
[1734928553396,0.0578,96116.0,96108.0,0.00156059]
[1734928553582,0.052078,96109.0,96108.0,0.00156059]
[1734928555983,0.052078,96109.0,96108.0,0.00456059]
[1734928559888,0.12469855,96122.0,96108.0,0.00456059]
[1734928560196,0.12469855,96122.0,96120.0,0.052072]
[1734928560384,0.12469855,96122.0,96121.0,0.0617]
[1734928561187,0.12451762,96138.0,96126.0,0.052069]
[1734928561382,0.13452823,96138.0,96128.0,0.052068]
[1734928561585,0.12451762,96138.0,96128.0,0.052068]
[1734928561794,0.12451762,96138.0,96128.0,0.20862338]
[1734928562495,0.0050853,96129.0,96128.0,0.20862338]
[1734928563590,0.0050853,96129.0,96128.0,0.052068]
[1734928566297,8.53e-05,96129.0,96128.0,0.052068]
[1734928566490,8.53e-05,96129.0,96128.0,0.30570134]
[1734928568009,8.53e-05,96129.0,96128.0,0.30170134]
[1734928568197,0.052059,96145.0,96128.0,0.24963334]
[1734928568390,0.00990674,96140.0,96136.0,0.3608]
[1734928569703,0.00990674,96140.0,96136.0,0.3628]
[1734928570097,0.00990674,96140.0,96136.0,0.414864]
[1734928570702,0.0636,96152.0,96142.0,0.05206]
[1734928570901,0.0636,96152.0,96140.0,0.10391235]
[1734928571103,0.3608,96155.0,96146.0,0.052058]
[1734928571500,0.37074278,96155.0,96141.0,0.0645]
[1734928571706,0.00994278,96155.0,96141.0,0.0645]
[1734928572006,0.001,96152.0,96141.0,0.0645]
[1734928572308,0.001,96152.0,96142.0,0.18558301]
[1734928572510,0.002,96155.0,96142.0,0.18558301]
[1734928573006,0.052056,96150.0,96142.0,0.18558301]
[1734928573806,0.052056,96150.0,96141.0,0.0645]
[1734928574704,0.001,96150.0,96148.0,0.052057]
[1734928575297,0.01011207,96157.0,96148.0,0.052057]
[1734928575498,0.3608,96160.0,96148.0,0.052057]
[1734928575709,0.052053,96156.0,96148.0,0.052057]
[1734928576506,0.052053,96156.0,96146.0,0.10391235]
[1734928576702,0.052053,96156.0,96150.0,0.052056]
[1734928577611,0.00984909,96160.0,96152.0,0.052055]
[1734928577811,0.3608,96164.0,96152.0,0.412855]
[1734928578116,0.004,96156.0,96152.0,0.412855]
[1734928579214,0.052058,96147.0,96145.0,0.18558301]
[1734928579509,0.0633,96146.0,96145.0,0.18558301]
[1734928579710,0.0633,96146.0,96141.0,0.18558301]
[1734928579711,0.115359,96146.0,96141.0,0.18558301]
[1734928581198,0.115359,96146.0,96136.0,0.35154569]
[1734928581199,0.115359,96146.0,96136.0,0.10391235]
[1734928581398,0.116359,96146.0,96135.0,0.052064]
[1734928581812,0.0643,96146.0,96135.0,0.052064]
[1734928582009,0.05206,96143.0,96135.0,0.052064]
[1734928582408,0.05206,96143.0,96135.0,0.054064]
[1734928584413,0.0633,96146.0,96135.0,0.002]
[1734928584617,0.0633,96146.0,96141.0,0.052061]
[1734928585117,0.07338043,96146.0,96141.0,0.052061]
[1734928585814,0.07438043,96146.0,96141.0,0.052061]
[1734928587411,0.052059,96145.0,96136.0,0.34155836]
[1734928588017,0.052059,96145.0,96140.0,0.18558301]
[1734928588413,0.07438043,96146.0,96140.0,0.18558301]
[1734928588611,0.052061,96141.0,96140.0,0.18558301]
[1734928590412,0.052061,96141.0,96138.0,0.24763334]
[1734928590911,0.3608,96145.0,96143.0,0.05206]
[1734928591622,0.3608,96145.0,96144.0,0.18599823]
[1734928593016,0.01008043,96146.0,96143.0,0.05206]
[1734928593219,0.052057,96149.0,96143.0,0.05206]
[1734928593424,0.001,96145.0,96143.0,0.05206]
[1734928593815,0.052057,96149.0,96143.0,0.05206]
[1734928594012,0.002,96145.0,96143.0,0.05206]
[1734928594616,0.002,96145.0,96144.0,0.04056317]
[1734928594810,0.002,96145.0,96143.0,0.05206]
[1734928595025,0.001,96145.0,96143.0,0.05206]
[1734928595518,0.001,96145.0,96144.0,0.04115411]
[1734928596525,0.001,96145.0,96144.0,0.04054742]
[1734928596712,0.001,96145.0,96144.0,0.04054606]
[1734928596912,0.001,96145.0,96143.0,0.36130757]
[1734928597117,0.01025431,96149.0,96147.0,0.052058]
[1734928597420,0.1209,96162.0,96143.0,0.35040168]
[1734928597421,0.3608,96158.0,96143.0,0.35040168]
[1734928597620,0.10391235,96153.0,96143.0,0.35040168]
[1734928597923,0.002,96145.0,96144.0,0.48694443]
[1734928599020,0.054059,96145.0,96144.0,0.48694443]
[1734928599217,0.054059,96145.0,96142.0,0.3608]
[1734928599520,0.052059,96145.0,96142.0,0.3608]
[1734928600114,0.054059,96145.0,96142.0,0.3608]
[1734928600521,0.052059,96145.0,96142.0,0.3608]
[1734928600725,0.053059,96145.0,96142.0,0.3608]
[1734928601120,0.052059,96145.0,96142.0,0.3608]
[1734928601327,0.053059,96145.0,96142.0,0.3608]
[1734928603123,0.06296519,96145.0,96142.0,0.3608]
[1734928603321,0.06196519,96145.0,96142.0,0.3608]
[1734928603619,0.06296519,96145.0,96142.0,0.40195411]
[1734928604622,0.06296519,96145.0,96142.0,0.3608]
[1734928604926,0.06296519,96145.0,96141.0,0.35040168]
[1734928605725,0.05206,96143.0,96142.0,0.04115411]
[1734928605921,0.05206,96143.0,96141.0,0.30924757]
[1734928607222,0.05306,96143.0,96141.0,0.30924757]
[1734928607628,0.05306,96143.0,96142.0,0.24806633]
[1734928608834,0.05306,96143.0,96141.0,0.24806633]
[1734928609428,0.05206,96143.0,96141.0,0.24806633]
[1734928609627,0.05306,96143.0,96141.0,0.24806633]
[1734928610223,0.05306,96143.0,96142.0,0.24806633]
[1734928611829,0.001,96143.0,96137.0,0.24447209]
[1734928612024,0.412863,96138.0,96137.0,0.07081135]
[1734928612229,0.412863,96138.0,96137.0,0.0306614]
[1734928612518,0.412863,96138.0,96137.0,0.021]
[1734928613226,0.41843039,96138.0,96113.0,0.36961323]
[1734928613528,0.052071,96123.0,96114.0,0.04053112]
[1734928614322,0.3608,96125.0,96114.0,0.04053112]
[1734928614519,0.052072,96122.0,96113.0,0.37861323]
[1734928614723,0.052072,96122.0,96113.0,0.009]
[1734928615721,0.3608,96125.0,96116.0,0.052075]
[1734928615929,0.001,96123.0,96116.0,0.052075]
[1734928616422,0.001,96122.0,96116.0,0.052075]
[1734928617035,0.001,96123.0,96116.0,0.061075]
[1734928617635,0.01014619,96125.0,96116.0,0.061075]
[1734928617636,0.001,96122.0,96116.0,0.061075]
[1734928619231,0.001,96123.0,96116.0,0.061075]
[1734928619837,0.001,96122.0,96116.0,0.061075]
[1734928620443,0.001,96123.0,96116.0,0.061075]
[1734928621943,0.052068,96128.0,96116.0,0.052075]
[1734928622146,0.001,96122.0,96116.0,0.061075]
[1734928622643,0.001,96123.0,96116.0,0.061075]
[1734928623243,0.3608,96129.0,96116.0,0.061075]
[1734928623244,0.001,96122.0,96117.0,0.3608]
[1734928623439,0.15590155,96142.0,96135.0,0.052064]
[1734928623640,0.15590155,96142.0,96135.0,0.412864]
[1734928624238,0.00156093,96143.0,96135.0,0.3608]
[1734928624546,0.00156093,96143.0,96137.0,0.052063]
[1734928624952,0.00156093,96143.0,96142.0,0.052061]
[1734928626048,0.09338546,96157.0,96156.0,0.052053]
[1734928626353,0.01564,96170.0,96156.0,0.052053]
[1734928626354,0.16450171,96173.0,96160.0,0.052051]
[1734928626557,0.21283845,96194.0,96183.0,0.052038]
[1734928627148,0.00992274,96195.0,96185.0,0.052037]
[1734928627652,0.1,96200.0,96197.0,0.052031]
[1734928629457,0.1,96200.0,96198.0,0.20836762]
[1734928629755,0.052017,96224.0,96208.0,0.052024]
[1734928629955,0.36136001,96229.0,96215.0,0.3608]
[1734928630149,0.3608,96229.0,96226.0,0.052015]
[1734928630344,0.3608,96229.0,96227.0,0.052014]
[1734928631659,0.01018634,96235.0,96217.0,0.05202]
[1734928631849,0.01018634,96235.0,96225.0,0.3608]
[1734928632257,0.3608,96231.0,96223.0,0.10391235]
[1734928632459,0.052014,96228.0,96223.0,0.10391235]
[1734928634849,0.3608,96231.0,96210.0,0.10391235]
[1734928635049,0.10391235,96220.0,96205.0,0.3608]
[1734928635350,0.10391235,96220.0,96200.0,0.052029]
[1734928635351,0.3608,96212.0,96186.0,0.3608]
[1734928635562,0.052029,96201.0,96194.0,0.3608]
[1734928636854,0.052029,96201.0,96194.0,0.3678]
[1734928637955,0.3608,96202.0,96196.0,0.052031]
[1734928638264,0.3608,96202.0,96194.0,0.3678]
[1734928638867,0.3608,96202.0,96200.0,0.052029]
[1734928639559,0.3608,96202.0,96196.0,0.006]
[1734928640066,0.052026,96205.0,96196.0,0.006]
[1734928640067,0.06964381,96211.0,96196.0,0.006]
[1734928640261,0.06964381,96211.0,96205.0,0.052026]
[1734928642367,0.06964381,96211.0,96205.0,0.054026]
[1734928642958,0.12166681,96211.0,96205.0,0.002]
[1734928643457,0.06964381,96211.0,96205.0,0.002]
[1734928645762,0.052024,96210.0,96205.0,0.002]
[1734928646775,0.052024,96210.0,96199.0,0.052029]
[1734928646964,0.052024,96210.0,96205.0,0.002]
[1734928647769,0.052025,96208.0,96205.0,0.002]
[1734928648173,0.0576,96207.0,96205.0,0.002]
[1734928648367,0.0576,96207.0,96199.0,0.057029]
[1734928649071,0.0576,96207.0,96205.0,0.002]
[1734928649272,0.109626,96207.0,96205.0,0.002]
[1734928649675,0.109626,96207.0,96199.0,0.057029]
[1734928651475,0.109626,96207.0,96205.0,0.002]
[1734928651868,0.109626,96207.0,96199.0,0.052029]
[1734928652172,0.06964381,96211.0,96204.0,0.3608]
[1734928652477,0.052026,96206.0,96199.0,0.005]
[1734928652668,0.052026,96206.0,96205.0,0.002]
[1734928653277,0.052026,96206.0,96204.0,0.003]
[1734928654477,0.052032,96194.0,96182.0,0.052038]
[1734928654776,0.052033,96193.0,96182.0,0.052038]
[1734928655175,0.052033,96193.0,96189.0,0.18468737]
[1734928656477,0.052033,96193.0,96189.0,0.19368737]
[1734928656677,0.052033,96193.0,96189.0,0.009]
[1734928657772,0.052033,96193.0,96189.0,0.19368737]
[1734928658981,0.01023086,96195.0,96190.0,0.052035]
[1734928659181,0.052029,96200.0,96194.0,0.052032]
[1734928659372,0.059,96204.0,96198.0,0.05203]
[1734928661266,0.06891495,96204.0,96198.0,0.05203]
[1734928662367,0.052029,96200.0,96198.0,0.18468737]
[1734928664677,0.054029,96200.0,96198.0,0.18468737]
[1734928665272,0.054029,96200.0,96197.0,0.18468737]
[1734928665477,0.05203,96199.0,96197.0,0.18468737]
[1734928666182,0.3608,96198.0,96197.0,0.18468737]
[1734928666381,0.3608,96198.0,96188.0,0.3608]
[1734928666679,0.412835,96189.0,96187.0,0.30581254]
[1734928666874,0.412835,96189.0,96181.0,0.37225274]
[1734928666875,0.052037,96186.0,96185.0,0.30581254]
[1734928668077,0.004,96186.0,96185.0,0.66761254]
[1734928668480,0.052032,96196.0,96187.0,0.052036]
[1734928668875,0.15550696,96191.0,96187.0,0.052036]
[1734928669879,0.15550696,96191.0,96185.0,0.3608]
[1734928670074,0.01033535,96196.0,96190.0,0.052035]
[1734928670284,0.10391235,96200.0,96183.0,0.0584]
[1734928670487,0.052035,96189.0,96184.0,0.04052413]
[1734928670677,0.052035,96189.0,96185.0,0.04052413]
[1734928670878,0.052035,96189.0,96182.0,0.052038]
[1734928671181,0.052032,96196.0,96183.0,0.04052776]
[1734928671477,0.10391235,96200.0,96184.0,0.04052776]
[1734928671786,0.10391235,96200.0,96182.0,0.052038]
[1734928671787,0.052034,96192.0,96182.0,0.052038]
[1734928671986,0.052034,96192.0,96183.0,0.04051421]
[1734928672774,0.052034,96192.0,96183.0,0.28797017]
[1734928673074,0.10391235,96200.0,96184.0,0.04051421]
[1734928673273,0.10391235,96200.0,96183.0,0.24745596]
[1734928673274,0.052035,96190.0,96183.0,0.24745596]
[1734928674680,0.053035,96190.0,96183.0,0.24745596]
[1734928675085,0.052035,96190.0,96183.0,0.24745596]
[1734928675388,0.054035,96190.0,96183.0,0.24745596]
[1734928675784,0.052036,96188.0,96183.0,0.24745596]
[1734928676586,0.052036,96188.0,96182.0,0.24745596]
[1734928677481,0.3608,96192.0,96182.0,0.24745596]
[1734928677676,0.3608,96192.0,96185.0,0.3608]
[1734928677879,0.001,96188.0,96186.0,0.052037]
[1734928678888,0.4189,96203.0,96187.0,0.04050116]
[1734928679081,0.4189,96203.0,96196.0,0.052031]
[1734928679280,0.4189,96203.0,96198.0,0.05203]
[1734928679281,0.3608,96203.0,96198.0,0.05203]
[1734928679887,0.37094849,96203.0,96198.0,0.05203]
[1734928681195,0.37394849,96203.0,96198.0,0.05203]
[1734928682182,0.37094849,96203.0,96198.0,0.05203]
[1734928682382,0.37394849,96203.0,96198.0,0.05203]
[1734928682583,0.37394849,96203.0,96199.0,0.24737671]
[1734928683090,0.3638,96203.0,96199.0,0.29940571]
[1734928683688,0.3608,96203.0,96199.0,0.29940571]
[1734928683893,0.3648,96203.0,96199.0,0.29940571]
[1734928684188,0.004,96203.0,96199.0,0.24737671]
[1734928684385,0.003,96203.0,96200.0,0.052029]
[1734928684992,0.003,96203.0,96200.0,0.29940571]
[1734928685488,0.004,96203.0,96200.0,0.29940571]
[1734928686591,0.004,96203.0,96202.0,0.24737671]
[1734928687901,0.004,96203.0,96201.0,0.24737671]
[1734928688592,0.052026,96206.0,96201.0,0.24737671]
[1734928688797,0.004,96203.0,96201.0,0.24737671]
[1734928689300,0.004,96203.0,96195.0,0.66769254]
[1734928689301,0.304,96203.0,96195.0,0.30689254]
[1734928689492,0.052032,96195.0,96194.0,0.00282898]
[1734928689691,0.052035,96189.0,96188.0,0.28397538]
[1734928691003,0.052039,96182.0,96175.0,0.00108]
[1734928691198,0.412839,96182.0,96169.0,0.052046]
[1734928693399,0.42690164,96182.0,96169.0,0.052046]
[1734928694204,0.42290164,96182.0,96169.0,0.052046]
[1734928694403,0.42690164,96182.0,96181.0,0.00255951]
[1734928696196,0.37486264,96182.0,96169.0,0.052046]
[1734928696401,0.052041,96178.0,96169.0,0.052046]
[1734928697608,0.055041,96178.0,96169.0,0.052046]
[1734928698108,0.055041,96178.0,96165.0,0.3608]
[1734928699810,0.01560001,96177.0,96165.0,0.3608]
[1734928700205,0.01560001,96177.0,96156.0,0.3608]
[1734928700511,0.01560001,96177.0,96150.0,0.164]
[1734928700512,0.052053,96156.0,96150.0,0.164]
[1734928700716,0.052054,96155.0,96150.0,0.164]
[1734928700909,0.3608,96152.0,96150.0,0.1097]
[1734928701208,0.052056,96151.0,96150.0,0.1097]
[1734928701414,0.052056,96151.0,96149.0,0.00155975]
[1734928701415,0.05216467,96151.0,96149.0,0.00155975]
[1734928701601,0.052063,96137.0,96130.0,0.3608]
[1734928702012,0.3608,96136.0,96126.0,0.1126]
[1734928702311,0.052063,96137.0,96126.0,0.1126]
[1734928702706,0.10391235,96140.0,96126.0,0.1126]
[1734928703415,0.052066,96132.0,96126.0,0.1166]
[1734928704317,0.3608,96136.0,96126.0,0.1166]
[1734928704709,0.052065,96135.0,96126.0,0.1166]
[1734928705018,0.3608,96136.0,96126.0,0.1166]
[1734928705217,0.052066,96133.0,96126.0,0.1166]
[1734928705414,0.052067,96130.0,96126.0,0.1166]
[1734928705611,0.052069,96128.0,96126.0,0.1166]
[1734928706010,0.052069,96128.0,96126.0,0.1126]
[1734928706214,0.052069,96128.0,96126.0,0.004]
[1734928706215,0.3608,96127.0,96126.0,0.004]
[1734928706822,0.052074,96118.0,96113.0,0.053]
[1734928707011,0.412874,96118.0,96113.0,0.053]
[1734928708115,0.413874,96118.0,96113.0,0.053]
[1734928709124,0.424356,96118.0,96113.0,0.053]
[1734928720728,0.3618,96118.0,96113.0,0.053]
[1734928720920,0.001,96118.0,96114.0,0.052075]
[1734928722525,0.003,96118.0,96114.0,0.052075]
[1734928722723,0.003,96118.0,96113.0,0.053]
[1734928723133,0.052072,96121.0,96117.0,0.00108063]
[1734928723531,0.3608,96119.0,96117.0,0.00108063]
[1734928723834,0.412873,96119.0,96117.0,0.00108063]
[1734928725427,0.412873,96119.0,96117.0,8.063e-05]
[1734928726134,0.417873,96119.0,96117.0,8.063e-05]
[1734928727432,0.00012938,96118.0,96117.0,8.063e-05]
[1734928727637,0.12458672,96118.0,96117.0,8.063e-05]
[1734928727933,0.23698672,96118.0,96117.0,8.063e-05]
[1734928728928,0.35783286,96118.0,96117.0,8.063e-05]
[1734928729236,0.35783286,96118.0,96099.0,0.3608]
[1734928729438,0.3608,96106.0,96099.0,0.3608]
[1734928730327,0.15561511,96104.0,96099.0,0.3608]
[1734928730527,0.052083,96101.0,96091.0,0.1657]
[1734928731935,0.11244646,96101.0,96091.0,0.1657]
[1734928732433,0.052086,96095.0,96091.0,0.1657]
[1734928733537,0.052087,96094.0,96091.0,0.1657]
[1734928733932,0.052087,96094.0,96091.0,0.1697]
[1734928734238,0.15579482,96092.0,96091.0,0.1697]
[1734928736238,0.15579482,96092.0,96091.0,0.1657]
[1734928736442,0.51659482,96092.0,96091.0,0.1697]
[1734928737340,0.4204374,96092.0,96091.0,0.1697]
[1734928738733,0.4204374,96092.0,96091.0,0.1657]
[1734928739043,0.4204374,96092.0,96091.0,0.1677]
[1734928739241,0.43076248,96092.0,96091.0,0.1677]
[1734928739541,0.43076248,96092.0,96091.0,0.1657]
[1734928739542,0.43376248,96092.0,96091.0,0.1657]
[1734928741245,0.37412508,96092.0,96091.0,0.1657]
[1734928741637,0.05209,96087.0,96086.0,0.00156057]
[1734928741837,0.37422447,96092.0,96070.0,0.00011899]
[1734928741838,0.3608,96088.0,96070.0,0.00011899]
[1734928742143,0.3608,96076.0,96070.0,0.00011899]
[1734928742344,0.052099,96071.0,96070.0,0.00011899]
[1734928745032,0.06216483,96071.0,96070.0,0.00011899]
[1734928746137,0.42496483,96071.0,96070.0,0.00011899]
[1734928746449,0.54935149,96071.0,96070.0,0.00011899]
[1734928748343,0.42496483,96071.0,96070.0,0.00011899]
[1734928749439,0.48186483,96071.0,96070.0,0.00011899]
[1734928749642,0.052107,96056.0,96052.0,0.1113]
[1734928750537,0.3608,96057.0,96041.0,0.3608]
[1734928750741,0.052116,96041.0,96035.0,0.0543]
[1734928752741,0.46523236,96045.0,96035.0,0.0543]
[1734928752947,0.46471235,96045.0,96035.0,0.0543]
[1734928753149,0.001,96041.0,96035.0,0.0603]
[1734928753754,0.052116,96040.0,96035.0,0.0603]
[1734928753950,0.001,96041.0,96035.0,0.006]
[1734928753951,0.052118,96037.0,96035.0,0.006]
[1734928754448,0.052118,96037.0,96035.0,0.007]
[1734928755051,0.052116,96039.0,96035.0,0.007]
[1734928755353,0.052118,96036.0,96035.0,0.007]
[1734928756244,0.412918,96036.0,96035.0,0.007]
[1734928756645,0.412918,96036.0,96035.0,0.006]
[1734928757042,0.001,96037.0,96035.0,0.006]
[1734928757240,0.052115,96043.0,96035.0,0.006]
[1734928757446,0.001,96036.0,96035.0,0.006]
[1734928759862,0.052115,96042.0,96029.0,0.3608]
[1734928760070,0.052115,96042.0,96035.0,0.006]
[1734928760557,0.001,96036.0,96035.0,0.006]
[1734928761152,0.052116,96040.0,96035.0,0.006]
[1734928761353,0.001,96042.0,96035.0,0.006]
[1734928761761,0.052119,96035.0,96019.0,0.01020749]
[1734928761946,0.052119,96035.0,96027.0,0.3608]
[1734928763961,0.412919,96035.0,96018.0,0.1695]
[1734928765856,0.412919,96035.0,96025.0,0.3608]
[1734928766963,0.42646167,96035.0,96025.0,0.3608]
[1734928767663,0.37434267,96035.0,96018.0,0.1695]
[1734928767865,0.10391235,96030.0,96018.0,0.1695]
[1734928768068,0.052127,96021.0,96019.0,0.15667366]
[1734928768564,0.052127,96021.0,96018.0,0.1695]
[1734928769268,0.052128,96018.0,96016.0,0.3608]
[1734928770261,0.052129,96016.0,96012.0,0.0529]
[1734928770961,0.05213,96015.0,96012.0,0.0529]
[1734928771164,0.05213,96013.0,96006.0,0.3608]
[1734928771356,0.05213,96013.0,95993.0,0.1634]
[1734928771557,0.05213,96013.0,95998.0,0.00156244]
[1734928772758,0.05213,96013.0,96012.0,0.006]
[1734928773269,0.05213,96013.0,95998.0,0.00156244]
[1734928773468,0.05313,96013.0,96011.0,0.00710986]
[1734928774573,0.3608,96012.0,96011.0,0.00010986]
[1734928774771,0.4726,96012.0,96011.0,0.00010986]
[1734928776370,0.4726,96012.0,96011.0,0.00310986]
[1734928776769,0.3608,96012.0,96011.0,0.00310986]
[1734928777072,0.3638,96012.0,96011.0,0.00010986]
[1734928779872,0.003,96012.0,96011.0,0.00010986]
[1734928780073,0.15569807,96017.0,96014.0,0.05213]
[1734928780274,0.15569807,96017.0,96015.0,0.0564]
[1734928780464,0.00011288,96020.0,96015.0,0.0564]
[1734928780465,0.052128,96019.0,96015.0,0.0564]
[1734928780865,0.052128,96019.0,96011.0,0.00010986]
[1734928781076,0.052137,96002.0,95996.0,0.3608]
[1734928781767,0.052137,96002.0,95996.0,0.60815856]
[1734928781967,0.052137,96002.0,95996.0,0.60895856]
[1734928783073,0.1454938,96002.0,95996.0,0.3616]
[1734928783278,0.1454938,96002.0,95996.0,0.3608]
[1734928783470,0.1454938,96002.0,96000.0,0.102]
[1734928783973,0.0933568,96002.0,96000.0,0.102]
[1734928784376,0.0933568,96002.0,96001.0,0.0531]
[1734928784577,0.0933568,96005.0,96001.0,0.0531]
[1734928785174,0.052136,96002.0,96001.0,0.0531]
[1734928786080,0.052136,96002.0,96001.0,0.0551]
[1734928787078,0.1454928,96002.0,96001.0,0.0531]
[1734928787583,0.1464928,96002.0,96001.0,0.0531]
[1734928788286,0.001,96002.0,96001.0,0.0531]
[1734928789784,0.0933568,96004.0,96003.0,0.052136]
[1734928791080,0.01032922,96010.0,96003.0,0.052136]
[1734928791271,0.0933568,96011.0,96003.0,0.052136]
[1734928791771,0.0933568,96011.0,96008.0,0.3608]
[1734928793289,0.0933568,96011.0,96008.0,0.3628]
[1734928793977,0.055132,96011.0,96008.0,0.3608]
[1734928794579,0.052132,96010.0,96008.0,0.3608]
[1734928794972,0.003,96011.0,96000.0,0.1]
[1734928794973,0.052137,96002.0,96000.0,0.1]
[1734928796974,0.053137,96002.0,96000.0,0.1]
[1734928798783,0.3608,96001.0,96000.0,0.1]
[1734928800085,0.3618,96001.0,96000.0,0.1]
[1734928800580,0.48627574,96001.0,96000.0,0.1]
[1734928801689,0.12547574,96001.0,96000.0,0.1]
[1734928801884,0.001,96001.0,96000.0,0.152138]
[1734928802388,0.001,96001.0,96000.0,0.19331717]
[1734928803184,0.01029702,96005.0,96001.0,0.052136]
[1734928803387,0.15569807,96010.0,96004.0,0.3608]
[1734928803388,0.09366177,96010.0,96004.0,0.3608]
[1734928804196,0.09366177,96010.0,96004.0,0.412935]
[1734928804694,0.01053492,96010.0,96009.0,0.24884042]
[1734928804887,0.09366177,96011.0,96009.0,0.24884042]
[1734928805387,0.09366177,96011.0,96010.0,0.0521]
[1734928805982,0.10385949,96012.0,96010.0,0.0521]
[1734928806184,0.09366177,96012.0,96011.0,0.09334232]
[1734928807493,0.09866177,96012.0,96011.0,0.052132]
[1734928807697,0.005,96012.0,96011.0,0.052132]
[1734928809189,0.004,96012.0,96010.0,0.0521]
[1734928809491,0.004,96012.0,96011.0,0.052132]
[1734928811994,0.003,96012.0,96011.0,0.052132]
[1734928813289,0.003,96012.0,96007.0,0.30987557]
[1734928813594,0.052133,96008.0,96007.0,0.30987557]
[1734928814192,0.052133,96008.0,95967.0,0.3608]
[1734928814193,0.052138,95999.0,95967.0,0.3608]
[1734928814385,0.052138,95999.0,95976.0,0.04122357]
[1734928814386,0.05215,95977.0,95976.0,0.04122357]
[1734928814691,0.05215,95977.0,95975.0,0.42924324]